bitfinex/quotes_SOLUSD_20250531
["timestamp","ask_amount","ask_price","bid_price","bid_amount"]
[1748655412904,6.48800401,154.14,154.09,61.78288774]
[1748655413131,49.47908132,154.14,154.09,61.78288774]
[1748655413330,42.99107731,154.13,154.09,18.79181043]
[1748655413506,6.48800401,154.14,154.09,18.79181043]
[1748655413714,6.48800401,154.14,154.06,18.933972]
[1748655413715,42.99107731,154.1,154.06,18.933972]
[1748655414025,42.99107731,154.1,154.05,18.64964886]
[1748655414433,49.48079111,154.09,154.03,43.13323888]
[1748655414738,6.4897138,154.09,154.05,0.14216157]
[1748655415236,6.48937921,154.1,154.05,43.27540045]
[1748655415528,32.42844478,154.19,154.03,0.14216157]
[1748655415529,6.48550489,154.19,154.09,61.92504931]
[1748655415723,42.99107731,154.16,154.09,18.933972]
[1748655415920,42.99107731,154.15,154.1,18.933972]
[1748655416128,42.21531325,154.18,154.1,18.933972]
[1748655416431,6.48760866,154.14,154.1,18.933972]
[1748655417057,49.47830791,154.15,154.1,18.933972]
[1748655417845,49.47830791,154.15,154.08,18.933972]
[1748655418063,49.47830791,154.15,154.11,18.933972]
[1748655418260,6.4872306,154.15,154.11,61.92504931]
[1748655418422,6.4872306,154.15,154.11,18.933972]
[1748655418724,53.31544203,154.26,154.14,18.933972]
[1748655418725,22.69668345,154.21,154.14,18.933972]
[1748655418926,22.69668345,154.21,154.14,61.92504931]
[1748655419124,48.69668345,154.21,154.14,61.92504931]
[1748655419430,49.47574108,154.21,154.16,0.14216157]
[1748655420247,42.99107731,154.17,154.04,16.22940387]
[1748655420466,42.99107731,154.16,154.11,18.933972]
[1748655420757,49.47616161,154.2,154.15,18.79181043]
[1748655420949,16.20912491,154.24,154.17,0.14216157]
[1748655421156,16.20912491,154.24,154.18,61.64072617]
[1748655421157,6.48382286,154.23,154.18,61.64072617]
[1748655421345,6.48172154,154.28,154.21,42.99107731]
[1748655421658,7.39527016,154.29,154.25,42.99107731]
[1748655421835,7.39527016,154.29,154.28,42.99107731]
[1748655421836,0.9139208,154.29,154.28,42.99107731]
[1748655422032,0.9139208,154.29,154.28,61.64072617]
[1748655422230,0.9139208,154.29,154.28,61.92504931]
[1748655422436,0.9139208,154.29,154.28,25.41569354]
[1748655422656,0.9139208,154.29,154.28,61.92504931]
[1748655422839,0.9139208,154.29,154.28,94.40677085]
[1748655423258,6.47626449,154.41,154.38,42.99107731]
[1748655423441,6.47500647,154.44,154.34,0.28432314]
[1748655423638,49.46608378,154.44,154.39,42.99107731]
[1748655423952,6.47416806,154.46,154.41,42.99107731]
[1748655424156,6.47416806,154.46,154.38,18.64964886]
[1748655424157,6.47416806,154.46,154.42,42.99107731]
[1748655424339,6.47416806,154.46,154.37,0.28432314]
[1748655424537,6.47416806,154.46,154.37,18.933972]
[1748655424538,49.46524537,154.46,154.37,18.933972]
[1748655424762,6.47416806,154.46,154.37,18.933972]
[1748655425065,6.47416806,154.46,154.41,42.99107731]
[1748655425277,42.99107731,154.45,154.39,42.99107731]
[1748655425577,42.99107731,154.45,154.26,10.0]
[1748655425578,42.99107731,154.41,154.34,18.64964886]
[1748655425865,42.99107731,154.39,154.33,42.99107731]
[1748655426163,42.99107731,154.4,154.35,42.99107731]
[1748655426373,42.99107731,154.4,154.34,42.99107731]
[1748655426542,42.99107731,154.4,154.25,26.0]
[1748655426543,6.4779426,154.37,154.3,18.64964886]
[1748655426742,6.47750877,154.39,154.36,42.99107731]
[1748655426942,6.47750877,154.39,154.29,8.2112]
[1748655427164,6.47750877,154.39,154.31,0.14216157]
[1748655427368,6.47750877,154.39,154.35,18.79181043]
[1748655427570,6.47587647,154.42,154.38,0.14216157]
[1748655427742,42.99107731,154.45,154.4,42.99107731]
[1748655427946,26.0,154.45,154.35,0.14216157]
[1748655428254,26.0,154.45,154.38,42.99107731]
[1748655428458,42.99107731,154.44,154.38,42.99107731]
[1748655428663,49.46650306,154.43,154.37,42.99107731]
[1748655428839,42.99107731,154.4,154.27,26.0]
[1748655429151,22.66399014,154.43,154.22,42.99107731]
[1748655429152,42.99107731,154.36,154.23,18.65547688]
[1748655429356,42.99107731,154.36,154.24,26.0]
[1748655429660,42.99107731,154.31,154.21,6.3866]
[1748655429968,50.0,154.4,154.21,6.3866]
[1748655430143,42.99107731,154.34,154.29,42.99107731]
[1748655430343,26.0,154.39,154.21,32.3866]
[1748655430344,42.99107731,154.36,154.21,32.3866]
[1748655430539,6.4804614,154.31,154.21,12.87107667]
[1748655430746,42.99107731,154.28,154.21,6.3866]
[1748655430944,42.99107731,154.28,154.23,18.79181043]
[1748655431146,22.68161492,154.31,154.21,6.3866]
[1748655431147,42.99107731,154.29,154.21,6.3866]
[1748655431380,49.47153871,154.31,154.25,42.99107731]
[1748655431755,42.99107731,154.28,154.22,42.99107731]
[1748655431962,42.99107731,154.28,154.21,6.3866]
[1748655432167,26.0,154.28,154.2,44.63617731]
[1748655432385,42.99107731,154.26,154.2,42.99107731]
[1748655432673,49.473219,154.27,154.21,42.99107731]
[1748655433174,42.99107731,154.24,154.18,42.99107731]
[1748655433372,42.99107731,154.23,154.18,42.99107731]
[1748655433582,42.99107731,154.21,154.14,6.5104]
[1748655433874,22.68749593,154.27,154.14,49.50147731]
[1748655433875,42.99107731,154.2,154.14,49.50147731]
[1748655434084,26.0,154.24,154.14,49.50147731]
[1748655434251,26.0,154.24,154.17,42.99107731]
[1748655434252,42.99107731,154.22,154.17,42.99107731]
[1748655434448,22.68749593,154.27,154.18,42.99107731]
[1748655434647,26.0,154.26,154.2,42.99107731]
[1748655434854,6.48130144,154.29,154.18,25.13543429]
[1748655434855,49.47237875,154.29,154.23,42.99107731]
[1748655435146,49.47200855,154.3,154.24,42.99107731]
[1748655435390,49.47200855,154.3,154.22,18.79181043]
[1748655435391,42.99107731,154.29,154.23,42.99107731]
[1748655435768,42.99107731,154.29,154.21,0.14216157]
[1748655435972,42.99107731,154.26,154.21,18.79181043]
[1748655436172,42.99107731,154.26,154.17,6.48629747]
[1748655436173,42.99107731,154.22,154.16,42.99107731]
[1748655436374,22.68313473,154.3,154.19,42.99107731]
[1748655436375,68.99107731,154.24,154.19,42.99107731]
[1748655436563,26.0,154.27,154.22,42.99107731]
[1748655436989,68.99107731,154.27,154.21,42.99107731]
[1748655437281,42.99107731,154.25,154.2,18.64964886]
[1748655437476,42.99107731,154.26,154.2,61.64072617]
[1748655437680,26.0,154.27,154.18,0.14216157]
[1748655437866,26.0,154.27,154.19,42.99107731]
[1748655437867,42.99107731,154.25,154.19,42.99107731]
[1748655438066,42.99107731,154.26,154.2,61.78288774]
[1748655438575,68.99107731,154.27,154.21,42.99107731]
[1748655438770,49.47363921,154.26,154.2,43.13323888]
[1748655438975,49.47363921,154.26,154.2,0.14216157]
[1748655438976,42.99107731,154.25,154.2,0.14216157]
[1748655439213,6.4825619,154.26,154.2,61.78288774]
[1748655439364,42.99107731,154.29,154.23,42.99107731]
[1748655439562,42.99107731,154.29,154.24,61.78288774]
[1748655439774,42.99107731,154.28,154.24,18.79181043]
[1748655439977,16.19735303,154.35,154.26,43.13323888]
[1748655440284,6.47885001,154.35,154.3,61.78288774]
[1748655440465,49.4686003,154.38,154.32,42.99107731]
[1748655440658,26.0,154.37,154.3,43.13323888]
[1748655440856,6.47878198,154.35,154.3,42.99107731]
[1748655441060,42.99107731,154.34,154.28,42.99107731]
[1748655441298,93.34,154.39,154.31,42.99107731]
[1748655441299,49.46944556,154.36,154.31,42.99107731]
[1748655441461,42.99107731,154.4,154.34,42.99107731]
[1748655441658,42.99107731,154.41,154.35,42.99107731]
[1748655441886,68.99107731,154.41,154.35,42.99107731]
[1748655442185,6.47584509,154.42,154.36,18.79181043]
[1748655442502,6.47416806,154.46,154.38,42.99107731]
[1748655442704,42.99107731,154.44,154.38,42.99107731]
[1748655442860,6.47542575,154.43,154.38,42.99107731]
[1748655443064,42.99107731,154.4,154.26,1.5063]
[1748655443263,6.47542575,154.43,154.33,42.99107731]
[1748655443482,42.99107731,154.39,154.34,42.99107731]
[1748655443686,42.99107731,154.4,154.34,42.99107731]
[1748655443870,6.47542575,154.43,154.38,42.99107731]
[1748655444062,6.47542575,154.43,154.37,0.14216157]
[1748655444063,93.36,154.5,154.4,42.99107731]
[1748655444263,93.36,154.5,154.42,42.99107731]
[1748655444264,6.47291086,154.49,154.42,42.99107731]
[1748655444508,6.47291086,154.49,154.44,42.99107731]
[1748655444668,42.99107731,154.47,154.33,26.0]
[1748655444997,6.47291086,154.49,154.43,61.64072617]
[1748655444998,42.99107731,154.49,154.43,61.64072617]
[1748655445174,42.99107731,154.48,154.43,42.99107731]
[1748655445373,42.99107731,154.48,154.42,0.14216157]
[1748655445374,42.99107731,154.48,154.42,43.13323888]
[1748655445566,42.99107731,154.49,154.44,0.14216157]
[1748655445772,26.0,154.49,154.44,61.78288774]
[1748655445977,42.99107731,154.5,154.45,42.99107731]
[1748655446185,22.65126799,154.52,154.45,42.99107731]
[1748655446186,6.47165415,154.52,154.45,0.14216157]
[1748655446377,26.0,154.51,154.44,43.13323888]
[1748655446574,42.99107731,154.5,154.44,61.78288774]
[1748655446786,49.46398817,154.49,154.44,0.14216157]
[1748655446967,49.46398817,154.49,154.44,18.79181043]
[1748655447167,65.64626534,154.49,154.4,1.5063]
[1748655447370,42.99107731,154.47,154.4,1.5063]
[1748655447671,42.99107731,154.42,154.34,18.64964886]
[1748655447869,26.0,154.46,154.34,0.28432314]
[1748655447870,42.99107731,154.43,154.34,0.28432314]
[1748655448089,26.0,154.46,154.37,42.99107731]
[1748655448293,42.99107731,154.44,154.38,42.99107731]
[1748655448475,6.47291086,154.49,154.43,42.99107731]
[1748655448798,6.47374894,154.47,154.43,43.13323888]
[1748655448991,6.47338894,154.48,154.44,42.99107731]
[1748655449484,6.47338894,154.48,154.43,0.14216157]
[1748655449791,6.47338894,154.48,154.44,42.99107731]
[1748655450003,26.0,154.49,154.43,18.79181043]
[1748655450004,6.47294803,154.49,154.45,43.13323888]
[1748655450295,32.47244608,154.51,154.46,42.99107731]
[1748655450598,75.46352339,154.51,154.45,43.13323888]
[1748655450769,32.47244608,154.51,154.46,61.64072617]
[1748655450970,16.17414938,154.57,154.49,42.99107731]
[1748655451271,6.46914219,154.58,154.51,42.99107731]
[1748655451473,6.46914219,154.58,154.5,18.64964886]
[1748655451474,6.46914219,154.58,154.53,42.99107731]
[1748655452076,6.46914219,154.58,154.5,0.14216157]
[1748655452280,6.46914219,154.58,154.53,42.99107731]
[1748655452501,6.46914219,154.58,154.49,0.14216157]
[1748655452502,42.99107731,154.56,154.49,0.14216157]
[1748655452687,22.64199766,154.58,154.49,42.99107731]
[1748655452867,26.0,154.57,154.5,42.99107731]
[1748655453070,42.99107731,154.56,154.5,42.99107731]
[1748655453298,68.99107731,154.57,154.48,0.28432314]
[1748655453498,42.99107731,154.56,154.5,18.64964886]
[1748655453701,42.99107731,154.56,154.46,8.04114645]
[1748655453702,42.99107731,154.56,154.47,18.64964886]
[1748655453899,42.99107731,154.53,154.48,42.99107731]
[1748655454079,68.99107731,154.55,154.49,61.64072617]
[1748655454275,42.99107731,154.57,154.51,61.64072617]
[1748655454598,6.46997929,154.56,154.51,61.64072617]
[1748655454773,65.63600484,154.56,154.49,0.14216157]
[1748655455094,42.99107731,154.55,154.47,18.79181043]
[1748655455305,42.99107731,154.55,154.49,42.99107731]
[1748655455485,6.46997929,154.56,154.51,42.99107731]
[1748655455670,6.46997929,154.56,154.52,42.99107731]
[1748655455874,49.4610566,154.56,154.5,0.28432314]
[1748655456095,42.99107731,154.54,154.47,18.64964886]
[1748655456309,6.46997929,154.56,154.51,18.64964886]
[1748655456478,6.46997929,154.56,154.52,0.14216157]
[1748655456675,6.46997929,154.56,154.53,18.64964886]
[1748655456869,16.17208044,154.59,154.53,18.64964886]
[1748655457075,0.9139208,154.6,154.57,42.99107731]
[1748655457274,0.9139208,154.6,154.59,61.64072617]
[1748655457490,0.9139208,154.6,154.59,61.92504931]
[1748655458371,6.46509654,154.68,154.6,18.933972]
[1748655458591,22.61420171,154.77,154.61,6.46788694]
[1748655458801,54.92020416,154.77,154.67,42.99107731]
[1748655459002,22.61420171,154.77,154.7,42.99107731]
[1748655459316,22.61420171,154.77,154.67,18.64964886]
[1748655459317,6.46120049,154.77,154.73,42.99107731]
[1748655459599,16.15025495,154.8,154.74,42.99107731]
[1748655459600,42.99107731,154.8,154.74,42.99107731]
[1748655459775,22.60543821,154.83,154.74,42.99107731]
[1748655459974,22.60543821,154.83,154.71,0.28432314]
[1748655459975,42.99107731,154.78,154.71,0.28432314]
[1748655460169,54.89892138,154.83,154.71,18.64964886]
[1748655460170,42.99107731,154.76,154.71,18.64964886]
[1748655460370,42.99107731,154.76,154.67,6.3497]
[1748655460371,42.99107731,154.73,154.6,14.199051]
[1748655460598,50.0,154.78,154.64,42.99107731]
[1748655460809,50.0,154.78,154.6,7.731]
[1748655460810,42.99107731,154.72,154.66,42.99107731]
[1748655461104,26.0,154.74,154.68,42.99107731]
[1748655461270,26.0,154.77,154.67,18.64964886]
[1748655461476,42.99107731,154.72,154.66,61.64072617]
[1748655461674,42.99107731,154.71,154.65,42.99107731]
[1748655461979,42.99107731,154.7,154.65,18.64964886]
[1748655462191,42.99107731,154.69,154.63,42.99107731]
[1748655462377,42.99107731,154.7,154.65,42.99107731]
[1748655462581,49.45478359,154.71,154.66,18.64964886]
[1748655462802,26.0,154.75,154.67,61.92504931]
[1748655463006,26.0,154.75,154.63,18.933972]
[1748655463307,42.99107731,154.72,154.63,18.933972]
[1748655463504,42.99107731,154.72,154.67,18.64964886]
[1748655463682,42.99107731,154.71,154.65,42.99107731]
[1748655463883,26.0,154.71,154.62,3.35033997]
[1748655464077,42.99107731,154.68,154.63,18.64964886]
[1748655464276,26.0,154.71,154.63,42.99107731]
[1748655464578,26.0,154.71,154.62,3.35033997]
[1748655464579,6.46579593,154.66,154.62,3.35033997]
[1748655464793,65.62136308,154.66,154.62,3.35033997]
[1748655464993,49.45687324,154.66,154.62,3.35033997]
[1748655465477,6.46579593,154.66,154.62,3.35033997]
[1748655465685,42.99107731,154.65,154.62,3.35033997]
[1748655465885,42.99107731,154.63,154.62,3.35033997]
[1748655466204,6.46370628,154.71,154.62,42.99107731]
[1748655466396,22.622972,154.71,154.56,18.64964886]
[1748655466590,22.622972,154.71,154.62,18.64964886]
[1748655466591,6.4653779,154.67,154.62,18.64964886]
[1748655466782,146.9,154.83,154.67,18.64964886]
[1748655466783,42.99107731,154.73,154.67,18.64964886]
[1748655467098,42.99107731,154.72,154.66,42.99107731]
[1748655467306,26.0,154.73,154.65,18.64964886]
[1748655467307,42.99107731,154.7,154.65,18.64964886]
[1748655467519,42.99107731,154.71,154.66,18.64964886]
[1748655467813,76.14882759,154.81,154.69,18.64964886]
[1748655467814,42.99107731,154.74,154.69,18.64964886]
[1748655467976,68.99107731,154.75,154.69,61.64072617]
[1748655468276,42.99107731,154.74,154.69,61.64072617]
[1748655468721,50.0,154.85,154.73,42.99107731]
[1748655468722,6.45786244,154.85,154.73,42.99107731]
[1748655468896,42.99107731,154.8,154.74,61.64072617]
[1748655469227,6.45786244,154.85,154.76,43.27540045]
[1748655469228,42.99107731,154.82,154.76,43.27540045]
[1748655469403,42.99107731,154.83,154.77,61.64072617]
[1748655469593,6.45786244,154.85,154.79,18.64964886]
[1748655469801,49.44893975,154.85,154.79,61.64072617]
[1748655469979,6.45786244,154.85,154.81,18.64964886]
[1748655470186,6.45786244,154.85,154.8,18.79181043]
[1748655470187,49.44893975,154.85,154.8,18.79181043]
[1748655470494,6.45786244,154.85,154.82,18.79181043]
[1748655471004,6.45786244,154.85,154.74,26.0]
[1748655471005,6.45786244,154.85,154.78,42.99107731]
[1748655471216,50.9139208,154.92,154.82,0.28432314]
[1748655471217,6.45661157,154.88,154.82,0.28432314]
[1748655471383,65.5892178,154.88,154.84,18.933972]
[1748655471586,6.45661157,154.88,154.84,43.27540045]
[1748655471790,6.45536117,154.91,154.87,18.933972]
[1748655472085,42.99107731,154.9,154.81,6.3932]
[1748655472283,42.99107731,154.87,154.84,18.64964886]
[1748655472493,42.99107731,154.87,154.82,18.933972]
[1748655472793,49.44852274,154.86,154.82,18.933972]
[1748655473006,42.99107731,154.84,154.79,18.933972]
[1748655473413,22.60105901,154.86,154.75,26.0]
[1748655473414,42.99107731,154.82,154.75,18.64964886]
[1748655473594,42.99107731,154.82,154.77,18.64964886]
[1748655473803,42.99107731,154.79,154.77,18.64964886]
[1748655474103,42.99107731,154.81,154.75,61.92504931]
[1748655474304,42.99107731,154.81,154.77,18.64964886]
[1748655474492,26.0,154.84,154.75,61.64072617]
[1748655474691,26.0,154.87,154.8,0.28432314]
[1748655474895,22.5966815,154.89,154.82,61.64072617]
[1748655475118,42.99107731,154.87,154.82,18.64964886]
[1748655475318,42.99107731,154.88,154.83,18.933972]
[1748655475523,22.5966815,154.89,154.85,18.64964886]
[1748655475524,49.44727202,154.89,154.85,18.64964886]
[1748655475737,6.45619471,154.89,154.85,18.64964886]
[1748655475897,49.44727202,154.89,154.85,18.64964886]
[1748655476097,6.45619471,154.89,154.85,18.64964886]
[1748655476404,49.44727202,154.89,154.85,18.64964886]
[1748655476921,42.99107731,154.87,154.83,0.28432314]
[1748655477116,26.0,154.87,154.8,42.99107731]
[1748655477313,26.0,154.86,154.7,6.46377529]
[1748655477511,42.99107731,154.79,154.74,49.38427731]
[1748655477824,26.0,154.82,154.74,6.3932]
[1748655478009,42.99107731,154.8,154.74,49.38427731]
[1748655478215,42.99107731,154.8,154.75,18.933972]
[1748655478522,42.99107731,154.79,154.75,18.933972]
[1748655478701,42.99107731,154.79,154.75,18.64964886]
[1748655478901,6.46078304,154.78,154.75,18.64964886]
[1748655479298,42.99107731,154.76,154.73,18.64964886]
[1748655479496,42.99107731,154.75,154.71,18.64964886]
[1748655479797,42.99107731,154.74,154.71,18.64964886]
[1748655480013,42.99107731,154.75,154.71,18.64964886]
[1748655480319,42.99107731,154.73,154.67,6.3932]
[1748655480531,26.0,154.75,154.68,61.64072617]
[1748655480720,26.0,154.75,154.67,6.3932]
[1748655480721,68.99107731,154.73,154.67,6.3932]
[1748655480927,26.0,154.7,154.62,42.99107731]
[1748655481148,42.99107731,154.67,154.61,42.99107731]
[1748655481310,22.62004781,154.73,154.66,42.99107731]
[1748655481510,26.0,154.72,154.69,18.64964886]
[1748655481743,6.4628708,154.73,154.69,61.64072617]
[1748655481933,42.99107731,154.7,154.6,8.0319]
[1748655482135,42.99107731,154.67,154.61,42.99107731]
[1748655482339,42.99107731,154.66,154.6,8.0319]
[1748655482654,42.99107731,154.65,154.61,18.64964886]
[1748655482853,26.0,154.7,154.62,42.99107731]
[1748655482854,49.45654662,154.67,154.62,42.99107731]
[1748655483133,26.0,154.7,154.61,18.64964886]
[1748655483134,26.0,154.7,154.67,0.28432314]
[1748655483512,26.0,154.7,154.6,6.369]
[1748655483513,42.99107731,154.68,154.62,18.64964886]
[1748655483849,42.99107731,154.65,154.6,42.99107731]
[1748655484027,42.99107731,154.64,154.59,42.99107731]
[1748655484218,42.99107731,154.65,154.6,42.99107731]
[1748655484422,42.99107731,154.67,154.61,42.99107731]
[1748655484620,75.45525414,154.7,154.65,18.64964886]
[1748655484826,26.0,154.71,154.68,18.64964886]
[1748655485030,146.9,154.74,154.67,42.99107731]
[1748655485031,146.9,154.74,154.7,43.27540045]
[1748655485218,42.99107731,154.78,154.73,61.64072617]
[1748655485418,6.45953103,154.81,154.73,61.64072617]
[1748655485419,42.99107731,154.79,154.75,18.64964886]
[1748655485840,42.99107731,154.79,154.74,18.933972]
[1748655486135,146.9,154.82,154.78,18.64964886]
[1748655486351,42.99107731,154.84,154.78,61.64072617]
[1748655486945,163.03891378,154.91,154.8,61.92504931]
[1748655487119,99.53748588,154.86,154.8,0.28432314]
[1748655487323,68.99107731,154.85,154.8,18.933972]
[1748655487526,42.99107731,154.82,154.77,18.64964886]
[1748655487743,99.53748588,154.86,154.79,0.28432314]
[1748655487967,45.13115267,154.82,154.71,26.0]
[1748655488242,115.68109946,154.86,154.79,18.64964886]
[1748655488448,71.13115267,154.83,154.79,18.64964886]
[1748655488739,26.0,154.83,154.69,6.46454198]
[1748655488940,26.0,154.83,154.77,45.13115267]
[1748655489149,26.0,154.83,154.71,6.46370628]
[1748655489150,77.58994341,154.83,154.78,63.78080153]
[1748655489339,45.13115267,154.82,154.78,18.64964886]
[1748655489736,45.13115267,154.82,154.77,18.64964886]
[1748655490044,45.13115267,154.82,154.76,45.13115267]
[1748655490215,45.13115267,154.81,154.77,0.28432314]
[1748655490412,71.13115267,154.83,154.79,0.28432314]
[1748655490616,45.13115267,154.82,154.69,48.6255238]
[1748655490837,45.13115267,154.81,154.77,18.79181043]
[1748655491023,6.45994832,154.8,154.77,18.79181043]
[1748655491219,6.45994832,154.8,154.77,0.14216157]
[1748655491453,6.4591138,154.82,154.78,18.64964886]
[1748655491621,51.59026647,154.82,154.78,18.933972]
[1748655491824,6.4591138,154.82,154.78,64.06512467]
[1748655492023,6.4591138,154.82,154.78,18.933972]
[1748655492246,45.13115267,154.79,154.75,18.64964886]
[1748655492461,45.13115267,154.79,154.69,32.46435121]
[1748655492462,45.13115267,154.82,154.77,63.78080153]
[1748655492752,45.13115267,154.8,154.77,0.28432314]
[1748655492938,45.13115267,154.8,154.76,18.64964886]
[1748655493142,6.46036565,154.79,154.76,18.64964886]
[1748655493525,26.0,154.82,154.78,18.64964886]
[1748655494054,45.13115267,154.83,154.79,0.28432314]
[1748655494224,26.0,154.84,154.81,0.28432314]
[1748655494423,146.9,154.85,154.81,0.28432314]
[1748655494624,51.58925179,154.85,154.81,0.28432314]
[1748655494862,45.13115267,154.82,154.69,41.55986894]
[1748655495035,45.13115267,154.81,154.76,45.27331424]
[1748655495236,45.13115267,154.81,154.77,18.64964886]
[1748655495237,45.13115267,154.8,154.77,18.64964886]
[1748655495435,51.59103573,154.81,154.77,18.64964886]
[1748655495637,51.59103573,154.81,154.76,0.14216157]
[1748655495638,45.13115267,154.79,154.67,1.5046]
[1748655495845,45.13115267,154.8,154.75,18.64964886]
[1748655496030,45.13115267,154.8,154.75,63.78080153]
[1748655496224,45.13115267,154.8,154.75,18.64964886]
[1748655496441,51.59103573,154.81,154.76,0.28432314]
[1748655496645,146.9,154.85,154.81,18.64964886]
[1748655496831,45.13115267,154.88,154.83,18.64964886]
[1748655497028,146.9,154.91,154.84,45.41547581]
[1748655497235,0.9139208,154.92,154.88,18.64964886]
[1748655497532,7.36904601,154.92,154.89,0.28432314]
[1748655497842,7.36904601,154.92,154.87,18.64964886]
[1748655498146,7.36904601,154.92,154.83,12.88264964]
[1748655498147,0.9139208,154.92,154.91,45.41547581]
[1748655498538,0.9139208,154.92,154.91,64.06512467]
[1748655498928,0.9139208,154.92,154.91,18.933972]
[1748655499125,0.9139208,154.92,154.91,64.06512467]
[1748655499351,0.9139208,154.92,154.91,18.933972]
[1748655499533,0.9139208,154.92,154.91,64.06512467]
[1748655499740,0.9139208,154.92,154.91,18.933972]
[1748655499944,0.9139208,154.92,154.91,64.06512467]
[1748655500145,6.42232562,155.13,154.93,0.28432314]
[1748655500146,16.12629151,155.03,154.93,0.28432314]
[1748655500459,45.13115267,155.01,154.97,0.28432314]
[1748655500751,45.13115267,154.98,154.95,0.28432314]
[1748655500952,45.13115267,154.98,154.94,18.64964886]
[1748655501124,45.13115267,154.96,154.92,18.933972]
[1748655501324,6.45369474,154.95,154.92,0.28432314]
[1748655501641,6.45369474,154.95,154.91,63.78080153]
[1748655501841,6.45369474,154.95,154.92,0.28432314]
[1748655502028,51.58484741,154.95,154.9,45.13115267]
[1748655502361,6.45369474,154.95,154.91,18.64964886]
[1748655502529,6.45369474,154.95,154.84,6.45824971]
[1748655502874,45.13115267,154.93,154.83,38.88264177]
[1748655503158,45.13115267,154.88,154.81,1.6479]
[1748655503357,45.13115267,154.88,154.82,45.13115267]
[1748655503358,6.45702847,154.87,154.82,45.13115267]
[1748655503567,6.45702847,154.87,154.83,18.933972]
[1748655503776,6.45702847,154.87,154.76,6.6388]
[1748655503777,45.13115267,154.86,154.8,45.13115267]
[1748655503949,51.58818114,154.87,154.76,13.10035769]
[1748655504283,45.13115267,154.86,154.76,6.6388]
[1748655504435,45.13115267,154.85,154.79,45.13115267]
[1748655504639,45.13115267,154.85,154.76,6.6388]
[1748655504640,26.0,154.84,154.76,6.6388]
[1748655504971,26.0,154.84,154.79,45.13115267]
[1748655505134,45.13115267,154.82,154.77,45.13115267]
[1748655505334,51.59059453,154.82,154.77,45.13115267]
[1748655505539,26.0,154.84,154.8,0.14216157]
[1748655505863,26.0,154.88,154.84,18.64964886]
[1748655506357,45.13115267,154.89,154.84,0.14216157]
[1748655506544,45.13115267,154.89,154.84,18.933972]
[1748655506745,6.45577792,154.9,154.84,45.13115267]
[1748655506949,6.45286184,154.97,154.86,45.13115267]
[1748655507261,16.13369206,154.96,154.86,45.13115267]
[1748655507459,16.13369206,154.96,154.85,18.933972]
[1748655507763,71.13115267,154.9,154.85,0.28432314]
[1748655507935,26.0,154.9,154.85,45.41547581]
[1748655508136,26.0,154.9,154.86,18.64964886]
[1748655508657,71.13115267,154.9,154.85,18.933972]
[1748655509161,26.0,154.9,154.87,0.28432314]
[1748655509350,6.45619471,154.89,154.79,26.0]
[1748655509560,45.13115267,154.86,154.78,18.64964886]
[1748655509782,26.0,154.83,154.76,6.6388]
[1748655509937,68.62304463,154.83,154.77,42.62304463]
[1748655510139,42.62304463,154.81,154.76,6.6388]
[1748655510370,42.62304463,154.81,154.74,1.575]
[1748655510371,42.62304463,154.81,154.75,42.62304463]
[1748655510603,26.0,154.81,154.76,61.27269349]
[1748655510888,26.0,154.83,154.8,18.64964886]
[1748655511104,22.5966815,154.89,154.82,18.64964886]
[1748655511265,42.62304463,154.86,154.82,18.64964886]
[1748655511464,42.62304463,154.86,154.81,42.90736777]
[1748655511465,49.08090707,154.85,154.74,8.03736255]
[1748655511664,42.62304463,154.82,154.79,18.933972]
[1748655511889,22.60251855,154.85,154.79,18.933972]
[1748655512184,42.62304463,154.84,154.79,18.79181043]
[1748655512358,42.62304463,154.82,154.79,0.14216157]
[1748655512562,42.62304463,154.81,154.77,18.64964886]
[1748655512761,42.62304463,154.81,154.78,0.28432314]
[1748655512963,22.60251855,154.85,154.73,42.62304463]
[1748655512964,26.0,154.78,154.73,42.62304463]
[1748655513178,68.62304463,154.78,154.67,1.6001]
[1748655513386,68.62304463,154.78,154.67,27.6001]
[1748655513587,42.62304463,154.75,154.67,1.6001]
[1748655513866,42.62304463,154.74,154.68,42.62304463]
[1748655514198,68.62304463,154.75,154.7,42.62304463]
[1748655514374,68.62304463,154.75,154.69,42.62304463]
[1748655514562,26.0,154.75,154.71,18.933972]
[1748655514762,26.0,154.75,154.71,18.79181043]
[1748655515184,68.62304463,154.75,154.71,18.64964886]
[1748655515364,42.62304463,154.74,154.69,18.64964886]
[1748655515696,6.4628708,154.73,154.7,18.79181043]
[1748655515885,26.0,154.75,154.74,0.14216157]
[1748655516087,6.46036565,154.79,154.76,0.14216157]
[1748655516384,55.84244324,154.88,154.76,0.14216157]
[1748655516385,6.45990396,154.81,154.76,0.28432314]
[1748655516604,6.45786244,154.85,154.79,0.14216157]
[1748655516887,6.45786244,154.85,154.69,22.62572209]